fUST/lending_fUST_20250927
["ID","MTS","AMOUNT","RATE_DAILY","PERIOD"]
[387849369,1758928249690,-6959.35,0.000376,14]
[387849370,1758928249703,-1226.35845507,0.00037644,3]
[387849371,1758928249713,-2525.48643967,0.00037648,3]
[387849372,1758928249723,-175.80869951,0.00037964,2]
[387849373,1758928249733,-500.0,0.00037985,30]
[387849374,1758928249743,-58876.16084717,0.00038,7]
[387849375,1758928249753,-10000.0,0.00038,60]
[387849376,1758928249763,-233.71402077,0.00038,30]
[387849377,1758928249772,-1009.026192,0.00038,12]
[387849378,1758928249782,-1500.0,0.00038,26]
[387849379,1758928249792,-999.0,0.00038082,120]
[387849380,1758928249802,-150.0,0.000381,2]
[387849381,1758928249811,-150.0,0.000381,2]
[387849382,1758928249820,-150.0,0.000381,2]
[387849383,1758928249830,-150.0,0.000381,2]
[387849384,1758928249839,-150.0,0.000381,2]
[387849385,1758928249849,-151.0,0.00038122,30]
[387849386,1758928249859,-500.0,0.00038128,30]
[387849387,1758928249870,-500.0,0.00038179,30]
[387849388,1758928249879,-1613.0,0.00038269,2]
[387849389,1758928249889,-163.57358115,0.00038356,2]
[387849390,1758928249899,-873.398513,0.00038356,2]
[387849391,1758928249908,-35154.67843294,0.00038453,2]
[387849392,1758928249918,-500.0,0.00038497,30]
[387849393,1758928249928,-100000.0,0.000385,26]
[387849394,1758928249938,-500.0,0.00038553,30]
[387849395,1758928249948,-175.80869951,0.00038598,120]
[387849396,1758928249958,-500.0,0.00038626,30]
[387849397,1758928249967,-644.79157611,0.0003864,2]
[387849398,1758928249977,-100000.0,0.000387,26]
[387849399,1758928249987,-615.82031076,0.000387,120]
[387849400,1758928249996,-500.0,0.00038701,30]
[387849401,1758928250006,-253.580134,0.0003877,2]
[387849402,1758928250015,-6959.35,0.000388,14]
[387849403,1758928250024,-500.0,0.00038817,30]
[387849404,1758928250034,-991.7534585,0.00038833,2]
[387849405,1758928250043,-500.0,0.00038852,30]
[387849406,1758928250053,-999.0,0.00038904,120]
[387849407,1758928250063,-583.44120406,0.00038912,30]
[387849408,1758928250072,-3369.6540979,0.00038991,2]
[387849409,1758928250082,-5000.0,0.00039,85]
[387849410,1758928250092,-100000.0,0.00039,26]
[387849411,1758928250101,-274.55268585,0.00039034,32]
[387849412,1758928250111,-500.0,0.00039132,30]
[387849413,1758928250120,-175.80869951,0.00039232,120]
[387849414,1758928250129,-851.19360881,0.00039285,30]
[387849415,1758928250139,-100000.0,0.000393,26]
[387849416,1758928250149,-196.692861,0.00039314,60]
[387849417,1758928250158,-1014.61630201,0.0003936,30]
[387849418,1758928250167,-500.0,0.00039395,30]
[387849419,1758928250177,-1506.09719775,0.000394,120]
[387849420,1758928250186,-160.77352352,0.00039439,10]
[387849421,1758928250196,-1000000.0,0.0003944,2]
[387849422,1758928250205,-512.387244,0.0003944,120]
[387849423,1758928250214,-256.379915,0.0003944,120]
[387849424,1758928250224,-512.387244,0.0003944,120]
[387849425,1758928250234,-256.379915,0.0003944,120]
[387849426,1758928250243,-512.387244,0.0003944,120]
[387849427,1758928250253,-256.379915,0.0003944,120]
[387849428,1758928250263,-512.387244,0.0003944,120]
[387849429,1758928250272,-256.379915,0.0003944,120]
[387849430,1758928250282,-151.0,0.0003944,120]
[387849431,1758928250292,-151.0,0.0003944,120]
[387849432,1758928250301,-151.196059,0.0003944,120]
[387849433,1758928250310,-288.190399,0.0003944,120]
[387849434,1758928250319,-288.190399,0.0003944,120]
[387849435,1758928250329,-288.190399,0.0003944,120]
[387849436,1758928250339,-288.190399,0.0003944,120]
[387849437,1758928250348,-151.0,0.0003944,120]
[387849438,1758928250358,-151.0,0.0003944,120]
[387849439,1758928250368,-151.0,0.0003944,120]
[387849440,1758928250378,-248.593174,0.0003944,120]
[387849441,1758928250388,-248.593174,0.0003944,120]
[387849442,1758928250398,-248.593174,0.0003944,120]
[387849443,1758928250408,-248.593174,0.0003944,120]
[387849444,1758928250418,-156.060014,0.0003944,120]
[387849445,1758928250427,-151.0,0.0003944,120]
[387849446,1758928250438,-151.0,0.0003944,120]
[387849447,1758928250447,-202.112772,0.0003944,120]
[387849448,1758928250456,-151.0,0.0003944,120]
[387849449,1758928250465,-202.112772,0.0003944,120]
[387849450,1758928250474,-202.112772,0.0003944,120]
[387849451,1758928250483,-226.993008,0.0003944,120]
[387849452,1758928250493,-202.112772,0.0003944,120]
[387849453,1758928250503,-226.993008,0.0003944,120]
[387849454,1758928250512,-151.0,0.0003944,120]
[387849455,1758928250522,-226.993008,0.0003944,120]
[387849456,1758928250531,-226.993008,0.0003944,120]
[387849457,1758928250541,-151.0,0.0003944,120]
[387849458,1758928250550,-151.0,0.0003944,120]
[387849459,1758928250560,-151.0,0.0003944,120]
[387849460,1758928250573,-151.0,0.0003944,120]
[387849461,1758928250582,-151.0,0.0003944,120]
[387849462,1758928250592,-151.0,0.0003944,120]
[387849463,1758928250603,-151.00000023,0.0003944,2]
[387849464,1758928250612,-151.0,0.0003944,120]
[387849465,1758928250621,-151.0,0.0003944,120]
[387849466,1758928250631,-151.0,0.0003944,120]
[387849467,1758928250640,-151.0,0.0003944,120]
[387849468,1758928250651,-151.0,0.0003944,30]
[387849469,1758928250660,-151.0,0.0003944,120]
[387849470,1758928250669,-151.0,0.0003944,120]
[387849471,1758928250679,-151.0,0.0003944,120]
[387849472,1758928250689,-151.0,0.0003944,30]
[387849473,1758928250698,-151.0,0.0003944,120]
[387849474,1758928250708,-151.0,0.0003944,120]
[387849475,1758928250717,-151.0,0.0003944,120]
[387849476,1758928250726,-151.0,0.0003944,120]
[387849477,1758928250735,-294.352635,0.0003944,120]
[387849478,1758928250745,-151.0,0.0003944,120]
[387849479,1758928250755,-294.352635,0.0003944,120]
[387849480,1758928250764,-151.0,0.0003944,120]
[387849481,1758928250773,-151.0,0.0003944,120]
[387849482,1758928250783,-294.352635,0.0003944,120]
[387849483,1758928250792,-151.0,0.0003944,120]
[387849484,1758928250802,-153.394992,0.0003944,120]
[387849485,1758928250811,-294.352635,0.0003944,120]
[387849486,1758928250820,-151.0,0.0003944,120]
[387849487,1758928250829,-2846.407671,0.0003944,120]
[387849488,1758928250838,-2846.407671,0.0003944,120]
[387849489,1758928250848,-151.0,0.0003944,120]
[387849490,1758928250858,-2846.407671,0.0003944,120]
[387849491,1758928250867,-151.0,0.0003944,120]
[387849492,1758928250876,-2846.407671,0.0003944,120]
[387849493,1758928250887,-151.0,0.0003944,14]
[387849494,1758928250896,-229.123454,0.0003944,120]
[387849495,1758928250906,-151.0,0.0003944,120]
[387849496,1758928250915,-229.123454,0.0003944,120]
[387849497,1758928250924,-151.0,0.0003944,120]
[387849498,1758928250936,-217.08928,0.0003944,120]
[387849499,1758928250951,-211.258031,0.0003944,120]
[387849500,1758928250965,-217.08928,0.0003944,120]
[387849501,1758928250977,-4489.052787,0.0003944,120]
[387849502,1758928250990,-229.123454,0.0003944,120]
[387849503,1758928251003,-229.123454,0.0003944,120]
[387849504,1758928251018,-217.08928,0.0003944,120]
[387849505,1758928251033,-4489.052787,0.0003944,120]
[387849506,1758928251047,-217.08928,0.0003944,120]
[387849507,1758928251062,-4489.052787,0.0003944,120]
[387849508,1758928251075,-4489.052787,0.0003944,120]
[387849509,1758928251088,-1633.889012,0.0003944,120]
[387849510,1758928251100,-1633.889012,0.0003944,120]
[387849511,1758928251115,-151.544137,0.0003944,120]
[387849512,1758928251129,-1633.889012,0.0003944,120]
[387849513,1758928251141,-151.544137,0.0003944,120]
[387849514,1758928251152,-1633.889012,0.0003944,120]
[387849515,1758928251164,-151.544137,0.0003944,120]
[387849516,1758928251178,-151.0,0.0003944,120]
[387849517,1758928251192,-151.544137,0.0003944,120]
[387849518,1758928251206,-189.687631,0.0003944,120]
[387849519,1758928251220,-189.687631,0.0003944,120]
[387849520,1758928251235,-609.978067,0.0003944,120]
[387849521,1758928251247,-189.687631,0.0003944,120]
[387849522,1758928251258,-189.687631,0.0003944,120]
[387849523,1758928251270,-609.978067,0.0003944,120]
[387849524,1758928251285,-609.978067,0.0003944,120]
[387849525,1758928251298,-609.978067,0.0003944,120]
[387849526,1758928251309,-1133.495777,0.0003944,120]
[387849527,1758928251322,-1133.495777,0.0003944,120]
[387849528,1758928251336,-211.677145,0.0003944,120]
[387849529,1758928251347,-1133.495777,0.0003944,120]
[387849530,1758928251359,-1133.495777,0.0003944,120]
[387849531,1758928251371,-211.677145,0.0003944,120]
[387849532,1758928251384,-653.025076,0.0003944,120]
[387849533,1758928251396,-211.677145,0.0003944,120]
[387849534,1758928251409,-151.0,0.0003944,120]
[387849535,1758928251421,-653.025076,0.0003944,120]
[387849536,1758928251433,-211.677145,0.0003944,120]
[387849537,1758928251446,-653.025076,0.0003944,120]
[387849538,1758928251458,-653.025076,0.0003944,120]
[387849539,1758928251470,-4769.754188,0.0003944,120]
[387849540,1758928251483,-4769.754188,0.0003944,120]
[387849541,1758928251495,-202.443215,0.0003944,120]
[387849542,1758928251507,-4769.754188,0.0003944,120]
[387849543,1758928251519,-151.0,0.0003944,120]
[387849544,1758928251532,-6566.9452771,0.00039611,2]
[387849545,1758928251544,-684.80254284,0.00039623,30]
[387849546,1758928251557,-999.0,0.00039726,120]
[387849547,1758928251572,-2160.0,0.00039779,2]
[387849548,1758928251584,-175.80869951,0.00039865,120]
[387849549,1758928251594,-635.0,0.00039867,2]
[387849550,1758928251606,-349.78532049,0.00039918,30]
[387849551,1758928251617,-997.61784146,0.00039948,30]
[387849552,1758928251629,-190732.78021651,0.0003999,120]
[387849553,1758928251640,-156.486716,0.0003999,120]
[387849554,1758928251651,-156.486716,0.0003999,120]
[387849555,1758928251661,-156.486716,0.0003999,120]
[387849556,1758928251672,-151.0,0.0003999,120]
[387849557,1758928251683,-156.486716,0.0003999,120]
[387849558,1758928251694,-151.0,0.0003999,120]
[387849559,1758928251705,-151.0,0.0003999,120]
[387849560,1758928251716,-151.0,0.0003999,120]
[387849561,1758928251727,-151.0,0.0003999,120]
[387849562,1758928251738,-151.0,0.0003999,120]
[387849563,1758928251751,-170.313711,0.0003999,7]
[387849564,1758928251762,-188.779854,0.0003999,120]
[387849565,1758928251773,-188.779854,0.0003999,120]
[387849566,1758928251784,-151.0,0.0003999,120]
[387849567,1758928251795,-188.779854,0.0003999,120]
[387849568,1758928251806,-188.779854,0.0003999,120]
[387849569,1758928251817,-151.0,0.0003999,120]
[387849570,1758928251828,-151.0,0.0003999,120]
[387849571,1758928251839,-308.085155,0.0003999,120]
[387849572,1758928251851,-151.0,0.0003999,120]
[387849573,1758928251862,-308.085155,0.0003999,120]
[387849574,1758928251874,-151.0,0.0003999,120]
[387849575,1758928251885,-308.085155,0.0003999,120]
[387849576,1758928251896,-151.0,0.0003999,120]
[387849577,1758928251907,-308.085155,0.0003999,120]
[387849578,1758928251919,-151.0,0.0003999,120]
[387849579,1758928251930,-151.0,0.0003999,120]
[387849580,1758928251941,-151.0,0.0003999,120]
[387849581,1758928251953,-823.515026,0.0003999,15]
[387849582,1758928251964,-823.515026,0.0003999,15]
[387849583,1758928251976,-823.515026,0.0003999,15]
[387849584,1758928251987,-823.515026,0.0003999,15]
[387849585,1758928251998,-250.0,0.0004,7]
[387849586,1758928252009,-1200.99161519,0.0004,2]
[387849587,1758928252020,-500.0,0.0004,2]
[387849588,1758928252031,-12286.57169777,0.0004,15]
[387849589,1758928252042,-500.0,0.0004,120]
[387849590,1758928252054,-337.60430945,0.0004,120]
[387849591,1758928252065,-519.77163818,0.0004,30]
[387849592,1758928252077,-150.0,0.0004,30]
[387849593,1758928252088,-5000.0,0.0004,90]
[387849594,1758928252098,-6959.35,0.0004,14]
[387849595,1758928252109,-349.78532049,0.0004011,30]
[387849596,1758928252120,-1075.4801088,0.00040163,2]
[387849597,1758928252131,-8200.3159829,0.00040178,2]
[387849598,1758928252143,-151.0,0.00040206,30]
[387849599,1758928252154,-349.78532049,0.00040301,30]
[387849600,1758928252165,-978.0,0.00040356,2]
[387849601,1758928252178,-221.290108,0.00040362,2]
[387849602,1758928252189,-349.78532049,0.00040493,30]
[387849603,1758928252200,-175.80869951,0.00040499,120]
[387849604,1758928252214,-100000.0,0.000405,26]
[387849605,1758928252234,-274.55268585,0.00040506,35]
[387849606,1758928252245,-600.0,0.00040547,7]
[387849607,1758928252257,-999.0,0.00040547,120]
[387849608,1758928252268,-252.94445901,0.00040658,120]
[387849609,1758928252279,-349.78532049,0.00040685,30]
[387849610,1758928252290,-201.0,0.0004081,55]
[387849611,1758928252301,-349.78532049,0.00040877,30]
[387849612,1758928252313,-5000.0,0.00041,90]
[387849613,1758928252324,-100000.0,0.00041,26]
[387849614,1758928252335,-644.79157611,0.0004102,28]
[387849615,1758928252347,-349.78532049,0.00041068,30]
[387849616,1758928252358,-200.0,0.00041089,120]
[387849617,1758928252369,-500.0,0.00041096,120]
[387849618,1758928252380,-500.0,0.00041096,10]
[387849619,1758928252391,-37766.97,0.00041096,120]
[387849620,1758928252403,-150.0,0.000411,2]
[387849621,1758928252414,-150.0,0.000411,2]
[387849622,1758928252426,-175.80869951,0.00041133,120]
[387849623,1758928252437,-349.78532049,0.0004126,30]
[387849624,1758928252448,-600.0,0.00041369,60]
[387849625,1758928252459,-999.0,0.00041369,120]
[387849626,1758928252470,-500.0,0.0004137,120]
[387849628,1758928252486,-250.0,0.000414,30]
[387849630,1758928252497,-250.0,0.000414,30]
[387849633,1758928252508,-250.0,0.000414,30]
[387849634,1758928252520,-250.0,0.000414,30]
[387849635,1758928252531,-250.0,0.000414,30]
[387849636,1758928252542,-153.3,0.000414,30]
[387849637,1758928252555,-2258.0,0.00041426,5]
[387849638,1758928252573,-1000000.0,0.0004144,2]
[387849639,1758928252586,-100000.0,0.0004144,2]
[387849640,1758928252598,-195.472467,0.0004144,120]
[387849641,1758928252611,-183.918253,0.0004144,120]
[387849642,1758928252624,-183.918253,0.0004144,120]
[387849643,1758928252637,-183.918253,0.0004144,120]
[387849644,1758928252649,-183.918253,0.0004144,120]
[387849645,1758928252662,-151.0,0.0004144,120]
[387849646,1758928252674,-151.0,0.0004144,120]
[387849647,1758928252686,-151.0,0.0004144,120]
[387849648,1758928252699,-151.0,0.0004144,120]
[387849649,1758928252715,-151.0,0.0004144,120]
[387849650,1758928252730,-151.0,0.0004144,120]
[387849651,1758928252743,-181.873877,0.0004144,120]
[387849652,1758928252755,-181.873877,0.0004144,120]
[387849653,1758928252767,-181.873877,0.0004144,120]
[387849654,1758928252779,-181.873877,0.0004144,120]
[387849655,1758928252792,-151.0,0.0004144,120]
[387849656,1758928252805,-151.0,0.0004144,120]
[387849657,1758928252817,-162.534835,0.0004144,120]
[387849658,1758928252830,-173.84455,0.0004144,120]
[387849659,1758928252843,-173.84455,0.0004144,120]
[387849660,1758928252855,-173.84455,0.0004144,120]
[387849661,1758928252868,-173.84455,0.0004144,120]
[387849662,1758928252880,-151.0,0.0004144,120]
[387849663,1758928253059,-220.388684,0.0004144,120]
[387849664,1758928253074,-220.388684,0.0004144,120]
[387849665,1758928253084,-220.388684,0.0004144,120]
[387849666,1758928253093,-220.388684,0.0004144,120]
[387849667,1758928253102,-151.0,0.0004144,120]
[387849668,1758928253111,-151.0,0.0004144,120]
[387849669,1758928253121,-151.0,0.0004144,120]
[387849670,1758928253130,-151.0,0.0004144,120]
[387849671,1758928253139,-151.0,0.0004144,120]
[387849672,1758928253148,-151.0,0.0004144,120]
[387849673,1758928253158,-151.0,0.0004144,120]
[387849674,1758928253167,-151.0,0.0004144,120]
[387849675,1758928253177,-151.0,0.0004144,120]
[387849676,1758928253187,-1169.273359,0.0004144,120]
[387849677,1758928253196,-1169.273359,0.0004144,120]
[387849678,1758928253205,-1169.273359,0.0004144,120]
[387849679,1758928253215,-1169.273359,0.0004144,120]
[387849680,1758928253224,-151.0,0.0004144,30]
[387849681,1758928253233,-166.1,0.0004144,120]
[387849682,1758928253243,-166.1,0.0004144,120]
[387849683,1758928253252,-166.1,0.0004144,120]
[387849684,1758928253262,-166.1,0.0004144,120]
[387849685,1758928253271,-151.0,0.0004144,30]
[387849686,1758928253281,-151.0,0.0004144,30]
[387849687,1758928253290,-151.0,0.0004144,30]
[387849688,1758928253300,-250.279243,0.0004144,120]
[387849689,1758928253309,-151.0,0.0004144,30]
[387849690,1758928253318,-151.0,0.0004144,120]
[387849691,1758928253327,-250.279243,0.0004144,120]
[387849692,1758928253337,-151.0,0.0004144,120]
[387849693,1758928253347,-250.279243,0.0004144,120]
[387849694,1758928253356,-250.279243,0.0004144,120]
[387849695,1758928253366,-151.0,0.0004144,120]
[387849696,1758928253375,-151.0,0.0004144,120]
[387849697,1758928253385,-189.445687,0.0004144,120]
[387849698,1758928253394,-151.0,0.0004144,120]
[387849699,1758928253403,-189.445687,0.0004144,120]
[387849700,1758928253412,-189.445687,0.0004144,120]
[387849701,1758928253422,-189.445687,0.0004144,120]
[387849702,1758928253432,-398.993343,0.0004144,120]
[387849703,1758928253442,-398.993343,0.0004144,120]
[387849704,1758928253451,-398.993343,0.0004144,120]
[387849705,1758928253460,-398.993343,0.0004144,120]
[387849706,1758928253469,-151.0,0.0004144,120]
[387849707,1758928253480,-151.0,0.0004144,120]
[387849708,1758928253489,-151.0,0.0004144,120]
[387849709,1758928253499,-179.648857,0.0004144,120]
[387849710,1758928253507,-179.648857,0.0004144,120]
[387849711,1758928253516,-179.648857,0.0004144,120]
[387849712,1758928253525,-179.648857,0.0004144,120]
[387849713,1758928253534,-151.0,0.0004144,120]
[387849714,1758928253544,-350.404037,0.0004144,120]
[387849715,1758928253553,-350.404037,0.0004144,120]
[387849716,1758928253565,-151.0,0.0004144,120]
[387849717,1758928253575,-350.404037,0.0004144,120]
[387849718,1758928253584,-236.210897,0.0004144,120]
[387849719,1758928253593,-350.404037,0.0004144,120]
[387849720,1758928253605,-236.210897,0.0004144,120]
[387849721,1758928253614,-153.421757,0.0004144,120]
[387849722,1758928253623,-236.210897,0.0004144,120]
[387849723,1758928253633,-153.421757,0.0004144,120]
[387849724,1758928253642,-153.421757,0.0004144,120]
[387849725,1758928253653,-236.210897,0.0004144,120]
[387849726,1758928253663,-151.0,0.0004144,120]
[387849727,1758928253673,-153.421757,0.0004144,120]
[387849728,1758928253682,-151.0,0.0004144,120]
[387849729,1758928253692,-265.449494,0.0004144,120]
[387849730,1758928253702,-265.449494,0.0004144,120]
[387849731,1758928253711,-265.449494,0.0004144,120]
[387849732,1758928253721,-265.449494,0.0004144,120]
[387849733,1758928253732,-167.202201,0.0004144,120]
[387849734,1758928253741,-1992.402611,0.0004144,120]
[387849735,1758928253751,-167.202201,0.0004144,120]
[387849736,1758928253760,-1992.402611,0.0004144,120]
[387849737,1758928253770,-167.202201,0.0004144,120]
[387849738,1758928253780,-1992.402611,0.0004144,120]
[387849739,1758928253790,-167.202201,0.0004144,120]
[387849740,1758928253799,-1992.402611,0.0004144,120]
[387849741,1758928253809,-304.576171,0.0004144,120]
[387849742,1758928253819,-151.0,0.0004144,120]
[387849743,1758928253828,-151.0,0.0004144,120]
[387849744,1758928253837,-304.576171,0.0004144,120]
[387849745,1758928253847,-151.0,0.0004144,120]
[387849746,1758928253857,-304.576171,0.0004144,120]
[387849747,1758928253866,-304.576171,0.0004144,120]
[387849748,1758928253876,-151.0,0.0004144,120]
[387849749,1758928253886,-151.0,0.0004144,120]
[387849750,1758928253895,-151.0,0.0004144,120]
[387849751,1758928253905,-151.0,0.0004144,120]
[387849752,1758928253915,-151.0,0.0004144,120]
[387849753,1758928253924,-156.486716,0.0004144,120]
[387849754,1758928253934,-156.486716,0.0004144,120]
[387849755,1758928253943,-156.486716,0.0004144,120]
[387849756,1758928253952,-151.0,0.0004144,120]
[387849757,1758928253962,-156.486716,0.0004144,120]
[387849758,1758928253972,-151.0,0.0004144,120]
[387849759,1758928253981,-151.0,0.0004144,120]
[387849760,1758928253990,-151.0,0.0004144,120]
[387849761,1758928253999,-151.0,0.0004144,120]
[387849762,1758928254009,-188.779854,0.0004144,120]
[387849763,1758928254018,-188.779854,0.0004144,120]
[387849764,1758928254027,-188.779854,0.0004144,120]
[387849765,1758928254036,-153.119067,0.0004144,120]
[387849766,1758928254045,-188.779854,0.0004144,120]
[387849767,1758928254055,-151.0,0.0004144,120]
[387849768,1758928254064,-151.0,0.0004144,120]
[387849769,1758928254074,-308.085155,0.0004144,120]
[387849770,1758928254083,-151.0,0.0004144,120]
[387849771,1758928254092,-308.085155,0.0004144,120]
[387849772,1758928254101,-153.969922,0.0004144,120]
[387849773,1758928254111,-308.085155,0.0004144,120]
[387849774,1758928254120,-308.085155,0.0004144,120]
[387849775,1758928254129,-151.0,0.0004144,120]
[387849776,1758928254139,-151.0,0.0004144,120]
[387849777,1758928254148,-151.0,0.0004144,120]
[387849778,1758928254157,-153.881803,0.0004144,120]
[387849779,1758928254167,-823.515026,0.0004144,15]
[387849780,1758928254176,-823.515026,0.0004144,15]
[387849781,1758928254186,-823.515026,0.0004144,15]
[387849782,1758928254195,-823.515026,0.0004144,15]
[387849783,1758928254204,-512.387244,0.0004144,120]
[387849784,1758928254213,-256.379915,0.0004144,120]
[387849785,1758928254223,-512.387244,0.0004144,120]
[387849786,1758928254233,-256.379915,0.0004144,120]
[387849787,1758928254242,-512.387244,0.0004144,120]
[387849788,1758928254251,-256.379915,0.0004144,120]
[387849789,1758928254261,-512.387244,0.0004144,120]
[387849790,1758928254271,-256.379915,0.0004144,120]
[387849791,1758928254280,-151.0,0.0004144,120]
[387849792,1758928254290,-151.0,0.0004144,120]
[387849793,1758928254299,-288.190399,0.0004144,120]
[387849794,1758928254309,-288.190399,0.0004144,120]
[387849795,1758928254318,-288.190399,0.0004144,120]
[387849796,1758928254328,-288.190399,0.0004144,120]
[387849797,1758928254337,-190.0,0.0004144,120]
[387849798,1758928254346,-151.0,0.0004144,120]
[387849799,1758928254355,-151.0,0.0004144,120]
[387849800,1758928254366,-248.593174,0.0004144,120]
[387849801,1758928254375,-248.593174,0.0004144,120]
[387849802,1758928254384,-248.593174,0.0004144,120]
[387849803,1758928254393,-248.593174,0.0004144,120]
[387849804,1758928254403,-151.0,0.0004144,120]
[387849805,1758928254412,-151.0,0.0004144,120]
[387849806,1758928254422,-202.112772,0.0004144,120]
[387849807,1758928254431,-151.0,0.0004144,120]
[387849808,1758928254440,-202.112772,0.0004144,120]
[387849809,1758928254450,-202.112772,0.0004144,120]
[387849810,1758928254459,-226.993008,0.0004144,120]
[387849811,1758928254468,-202.112772,0.0004144,120]
[387849812,1758928254477,-226.993008,0.0004144,120]
[387849813,1758928254487,-152.038175,0.0004144,120]
[387849814,1758928254496,-226.993008,0.0004144,120]
[387849815,1758928254505,-226.993008,0.0004144,120]
[387849816,1758928254514,-151.0,0.0004144,120]
[387849817,1758928254523,-151.0,0.0004144,120]
[387849818,1758928254532,-151.0,0.0004144,120]
[387849819,1758928254542,-151.0,0.0004144,120]
[387849820,1758928254551,-151.0,0.0004144,120]
[387849821,1758928254562,-151.0,0.0004144,120]
[387849822,1758928254573,-151.0,0.0004144,120]
[387849823,1758928254581,-151.0,0.0004144,120]
[387849824,1758928254591,-151.0,0.0004144,120]
[387849825,1758928254601,-158.53801,0.0004144,120]
[387849826,1758928254610,-151.0,0.0004144,30]
[387849827,1758928254619,-151.0,0.0004144,120]
[387849828,1758928254628,-151.0,0.0004144,120]
[387849829,1758928254638,-151.0,0.0004144,120]
[387849830,1758928254649,-151.0,0.0004144,30]
[387849831,1758928254658,-289.397277,0.0004144,120]
[387849832,1758928254667,-151.0,0.0004144,120]
[387849833,1758928254676,-151.0,0.0004144,120]
[387849834,1758928254685,-151.0,0.0004144,120]
[387849835,1758928254695,-294.352635,0.0004144,120]
[387849836,1758928254704,-151.0,0.0004144,120]
[387849837,1758928254714,-294.352635,0.0004144,120]
[387849838,1758928254724,-151.0,0.0004144,120]
[387849839,1758928254733,-151.0,0.0004144,120]
[387849840,1758928254742,-294.352635,0.0004144,120]
[387849841,1758928254751,-151.0,0.0004144,120]
[387849842,1758928254760,-294.352635,0.0004144,120]
[387849843,1758928254770,-2846.407671,0.0004144,120]
[387849844,1758928254779,-2846.407671,0.0004144,120]
[387849845,1758928254788,-151.0,0.0004144,120]
[387849846,1758928254797,-2846.407671,0.0004144,120]
[387849847,1758928254807,-151.0,0.0004144,120]
[387849848,1758928254817,-2846.407671,0.0004144,120]
[387849849,1758928254826,-151.0,0.0004144,14]
[387849850,1758928254835,-229.123454,0.0004144,120]
[387849851,1758928254845,-151.0,0.0004144,120]
[387849852,1758928254855,-229.123454,0.0004144,120]
[387849853,1758928254864,-151.0,0.0004144,120]
[387849854,1758928254873,-217.08928,0.0004144,120]
[387849855,1758928254883,-217.08928,0.0004144,120]
[387849856,1758928254892,-229.123454,0.0004144,120]
[387849857,1758928254902,-4489.052787,0.0004144,120]
[387849858,1758928254911,-229.123454,0.0004144,120]
[387849859,1758928254920,-217.08928,0.0004144,120]
[387849860,1758928254929,-4489.052787,0.0004144,120]
[387849861,1758928254939,-217.08928,0.0004144,120]
[387849862,1758928254948,-4489.052787,0.0004144,120]
[387849863,1758928254957,-4489.052787,0.0004144,120]
[387849864,1758928254967,-1633.889012,0.0004144,120]
[387849865,1758928254976,-1633.889012,0.0004144,120]
[387849866,1758928254985,-151.544137,0.0004144,120]
[387849867,1758928254994,-1633.889012,0.0004144,120]
[387849868,1758928255003,-151.544137,0.0004144,120]
[387849869,1758928255012,-1633.889012,0.0004144,120]
[387849870,1758928255021,-151.544137,0.0004144,120]
[387849871,1758928255031,-151.0,0.0004144,120]
[387849872,1758928255040,-151.544137,0.0004144,120]